[Event "Festival Groningen-A 2024"]
[Site "Groningen"]
[Date "2024.12.22"]
[Round "2.1"]
[White "Laxman, R.R."]
[Black "Narayanan S L"]
[Result "1/2-1/2"]
[ECO "A04"]
[WhiteElo "2310"]
[BlackElo "2647"]
[Annotator "TA"]
[PlyCount "37"]
[EventDate "2024.12.21"]
[EventType "swiss"]
[EventCountry "NED"]
[SourceTitle "playchess.com"]
[Source "ChessBase"]
[SourceQuality "1"]
[TimeControl "40/5400+30:1800+30"]

{[%evp 9,37,-13,0,0,0,0,0,-12,0,0,12,-2,9,-26,-22,-30,-25,-16,0,-9,-2,0,10,9,38,38,60,55,64,58]} 1. Nf3 {[%emt 0:00:23]} c5 {[%emt 0:00:11]} 2. b3 {[%emt 0:02:20]} d6 {[%emt 0:00:13]} 3. Bb2 {[%emt 0:00:46]} e5 {[%emt 0:00:10]} 4. d3 {[%emt 0:01:27]} Nc6 {[%emt 0:00:46]} 5. g3 {[%emt 0:00:17]} g6 {[%emt 0:00:14]} 6. Bg2 {[%emt 0:00:06]} Bg7 {[%emt 0:00:06]} 7. c4 {[%emt 0:00:17]} Nge7 {[%emt 0:00:09]} 8. O-O {[%emt 0:00:27] The position is equal.} O-O {[%emt 0:00:07][%cal Oe5e4]} 9. Nc3 {[%emt 0:00:08]} h6 {[%emt 0:00:07]} 10. e3 {[%emt 0:00:19]} Be6 {[%emt 0:00:44]} 11. Nd2 {[%emt 0:00:24]} d5 {[%emt 0:00:49]} 12. e4 {[%emt 0:05:37]} dxc4 {[%emt 0:01:09]} 13. dxc4 {[%emt 0:00:05]} Nd4 {[%emt 0:01:14]} 14. Nd5 {[%emt 0:00:14]} Nec6 {[%emt 0:06:31]} 15. Nf3 {[%emt 0:04:11]} Bg4 {[%emt 0:18:48]} 16. Qd3 {[%emt 0:00:42]} f5 {[%emt 0:16:02] [#] Strongly threatening ...fxe4.} 17. Nxd4 {[%emt 0:01:06] White is slightly better.} Nxd4 {[%emt 0:01:59]} 18. Bxd4 {[%emt 0:00:50]} cxd4 {[%emt 0:00:08]} 19. f4 {[%emt 0:14:23] Weighted Error Value: White=0.05 (flawless) /Black=0.10 (very precise) .  Inaccurate:     	White=1     	Black=1      OK:         	White=8     	Black=2} 1/2-1/2

[Event "Festival Groningen-A 2024"]
[Site "Groningen"]
[Date "2024.12.22"]
[Round "2.2"]
[White "Beerdsen, Thomas"]
[Black "Manish Anto Cristiano F"]
[Result "1-0"]
[ECO "B67"]
[WhiteElo "2502"]
[BlackElo "2296"]
[Annotator "TA"]
[PlyCount "59"]
[EventDate "2024.12.21"]
[EventType "swiss"]
[EventCountry "NED"]
[SourceTitle "playchess.com"]
[Source "ChessBase"]
[SourceQuality "1"]
[TimeControl "40/5400+30:1800+30"]

{[%evp 17,59,10,18,16,21,11,37,35,42,44,77,51,73,53,76,20,21,0,0,0,33,10,111,49,60,14,225,213,719,708,904,893,887,889,966,626,812,780,884,886,1111,1104,29990,29991]} 1. e4 {[%emt 0:00:03]} c5 {[%emt 0:00:11]} 2. Nf3 {[%emt 0:00:07]} d6 {[%emt 0:00:06]} 3. d4 {[%emt 0:00:05]} cxd4 {[%emt 0:00:07]} 4. Nxd4 {[%emt 0:00:05]} Nf6 {[%emt 0:00:08]} 5. Nc3 {[%emt 0:00:06]} Nc6 {[%emt 0:00:23]} 6. Bg5 {[%emt 0:00:18]} e6 {[%emt 0:00:09]} 7. Qd2 {[%emt 0:01:59]} a6 {[%emt 0:00:10]} 8. O-O-O {[%emt 0:01:10]} Bd7 {[%emt 0:00:35]} 9. Nxc6 {[%emt 0:00:41]} Bxc6 {[%emt 0:00:45]} 10. f3 {[%emt 0:04:31]} Be7 {[%emt 0:00:20]} 11. Kb1 {[%emt 0:01:42]} Qa5 {[%emt 0:15:34]} 12. h4 {[%emt 0:02:53]} h6 {[%emt 0:00:14]} 13. Be3 {[%emt 0:00:40]} h5 {[%emt 0:00:13]} 14. Qf2 {[%emt 0:11:12]} Nd7 {[%emt 0:03:12] Against Bb6} 15. Bd4 {[%emt 0:00:43]} Rg8 {[%emt 0:03:20]} 16. f4 {[%emt 0:09:11]} (16. Bd3 $16) 16... b5 $11 {[%emt 0:01:56][%cal Bb7b5,Bb5b4][%mdl 32]} 17. Bd3 {[%emt 0:01:00][%cal Bf1d3,Bd3f5,Bf5h7,Bh7g6][%mdl 32]} b4 {[%emt 0:10:41]} 18. Ne2 {[%emt 0:00:12]} Nc5 {[%emt 0:00:08]} 19. Qe3 {[%emt 0:04:14]} d5 {[%emt 0:15:03]} (19... g6 $11 {remains equal.}) 20. exd5 {[%emt 0:09:38]} (20. f5 $16) 20... Bxd5 $14 {[%emt 0:01:19]} 21. b3 {[%emt 0:00:13]} (21. c4 $14 bxc3 (21... Bxg2 22. Rhg1 $16) 22. Nxc3 Bxg2 23. Bh7 Bxh1 24. Bxg8) 21... f5 $2 {[%emt 0:07:44]} ({Don't play} 21... Bxg2 $6 22. Rhg1 Nxd3 23. Rxg2 $16) (21... g6 $11 {and Black has nothing to worry.}) 22. Bxf5 $1 $18 {[%emt 0:00:43]} Kf7 $2 {[%emt 0:05:30] Repels Bg6+} (22... exf5 23. Bxc5 Qxc5 24. Qxc5 Bxc5 25. Rxd5 Be7 26. Rxf5 g6) 23. Bh7 {[%emt 0:02:23][%cal Of4f5]} Rh8 {[%emt 0:07:21] [#]} 24. Bg6+ $1 {[%emt 0:02:06][%mdl 512]} Kg8 {[%emt 0:01:32]} 25. f5 {[%emt 0:02:25]} Rh6 {[%emt 0:01:35]} 26. Nf4 {[%emt 0:02:05] Threatens to win with Nxd5.} Be4 {[%emt 0:01:24][%cal Oe4c2]} 27. Rd2 {[%emt 0:02:31]} (27. Bxh5 $2 Bxc2+ 28. Kxc2 Qxa2+ 29. Bb2 Rc8 $19) 27... exf5 {[%emt 0:03:44]} 28. Bxf5 {[%emt 0:00:23]} ({Less strong is} 28. Bxh5 Rc8 $16) 28... Bxf5 {[%emt 0:01:51]} 29. Qxe7 {[%emt 0:00:06][%csl Gd4][%cal Re7g7]} Bxc2+ {[%emt 0:00:19]} 30. Rxc2 {[%emt 0:00:05]} 1-0

[Event "Festival Groningen-A 2024"]
[Site "Groningen"]
[Date "2024.12.22"]
[Round "2.3"]
[White "Schoorl, Rob"]
[Black "De Winter, Arthur"]
[Result "0-1"]
[ECO "A09"]
[WhiteElo "2295"]
[BlackElo "2446"]
[Annotator "TA"]
[PlyCount "80"]
[EventDate "2024.12.21"]
[EventType "swiss"]
[EventCountry "NED"]
[SourceTitle "playchess.com"]
[Source "ChessBase"]
[SourceQuality "1"]
[TimeControl "40/5400+30:1800+30"]

{[%evp 11,80,0,6,0,36,27,34,11,11,0,8,-16,-25,-9,-10,-12,-1,-34,-24,-23,-28,-24,0,0,-14,-14,0,0,5,-9,25,-11,0,0,10,21,33,0,0,0,32,-27,-37,-44,-56,-214,-222,-208,-220,-204,-215,-254,-208,-211,-175,-233,-225,-471,-470,-498,-527,-517,-526,-522,-521,-491,-368,-709,-722,-713,-717]} 1. Nf3 {[%emt 0:14:46]} d5 {[%emt 0:00:07][%cal Bd7d5,Bd5d4][%mdl 32]} 2. c4 {[%emt 0:00:15]} e6 {[%emt 0:00:05]} 3. g3 {[%emt 0:00:05]} d4 {[%emt 0:00:55]} 4. Bg2 {[%emt 0:02:29]} c5 {[%emt 0:00:11]} 5. O-O {[%emt 0:00:23]} Nc6 {[%emt 0:01:10]} 6. d3 {[%emt 0:00:49]} Nf6 {[%emt 0:00:34]} 7. e3 {[%emt 0:00:13]} h6 {[%emt 0:00:22]} 8. exd4 {[%emt 0:00:08]} cxd4 {[%emt 0:00:04]} 9. Re1 {[%emt 0:02:58]} Bd6 {[%emt 0:00:10]} 10. Na3 {[%emt 0:03:40]} O-O {[%emt 0:00:08]} 11. Nc2 {[%emt 0:01:40][%cal Ob2b4]} a5 {[%emt 0:00:06]} 12. a3 {[%emt 0:04:11]} e5 {[%emt 0:02:18]} 13. Rb1 {[%emt 0:08:51]} a4 {[%emt 0:01:26]} 14. Bd2 {[%emt 0:07:16]} Re8 {[%emt 0:10:08]} 15. b4 {[%emt 0:04:52]} axb3 {[%emt 0:00:16]} 16. Rxb3 {[%emt 0:00:04]} Nd7 {[%emt 0:01:14]} 17. Bb4 {[%emt 0:00:57]} Bc7 {[%emt 0:16:27]} 18. Nd2 {[%emt 0:02:42]} Ra6 {[%emt 0:09:35]} 19. Ne4 {[%emt 0:05:37]} b6 {[%emt 0:02:17]} 20. Qh5 {[%emt 0:07:01][%cal Oe4g5]} Na5 {[%emt 0:07:10]} 21. Bxa5 {[%emt 0:03:28]} bxa5 {[%emt 0:04:02]} 22. Rb5 {[%emt 0:07:05]} Nf8 {[%emt 0:01:23]} 23. a4 {[%emt 0:03:36]} Ne6 {[%emt 0:04:44]} 24. Na1 {[%emt 0:05:37]} Bd7 {[%emt 0:02:38]} 25. Nb3 {[%emt 0:00:43]} Bxb5 {[%emt 0:01:44]} (25... Ra7 $5) 26. axb5 {[%emt 0:00:29]} (26. cxb5 $14 Ra7 27. Rb1) 26... Ra7 $11 {[%emt 0:03:02]} 27. c5 {[%emt 0:05:46]} a4 {[%emt 0:00:09]} 28. b6 $2 {[%emt 0:01:35]} (28. Nbd2 $1 $15) 28... Bxb6 $19 {[%emt 0:00:21]} 29. cxb6 {[%emt 0:00:02]} Qxb6 {[%emt 0:00:08]} 30. Nbd2 {[%emt 0:00:07][%cal Oe1b1]} a3 {[%emt 0:01:11]} 31. Nc4 {[%emt 0:04:58]} Qb4 {[%emt 0:03:50]} 32. Ra1 {[%emt 0:01:43]} a2 {[%emt 0:00:46]} 33. Qd1 {[%emt 0:01:25]} (33. Ned2 $142) 33... Rb8 {[%emt 0:00:50]} 34. Ned2 $2 {[%emt 0:00:27] [#] Against Qb1} (34. Bf3) 34... Nc5 $1 {[%emt 0:05:20] and ...Nb3 would now be decisive} 35. Qc2 {[%emt 0:01:10]} Qa4 {[%emt 0:00:35]} 36. Qxa4 {[%emt 0:00:32]} Rxa4 {[%emt 0:00:02]} 37. Bd5 {[%emt 0:00:34]} Nxd3 {[%emt 0:05:26]} 38. Nd6 {[%emt 0:00:40]} Kf8 {[%emt 0:03:13]} 39. Rxa2 $2 {[%emt 0:00:33]} (39. Bb3 Ra3 40. Bd5) 39... Rxa2 {[%emt 0:00:09]} 40. Bxa2 {[%emt 0:00:06]} Rb2 {[%emt 0:00:05][%csl LRa2,LRd2]} 0-1

[Event "Festival Groningen-A 2024"]
[Site "Groningen"]
[Date "2024.12.22"]
[Round "2.4"]
[White "Ivanov, Dmytry"]
[Black "Stijve, Theo"]
[Result "1/2-1/2"]
[ECO "D00"]
[WhiteElo "2072"]
[BlackElo "2396"]
[Annotator "TA"]
[PlyCount "100"]
[EventDate "2024.12.21"]
[EventType "swiss"]
[EventCountry "NED"]
[SourceTitle "playchess.com"]
[Source "ChessBase"]
[SourceQuality "1"]
[TimeControl "40/5400+30:1800+30"]

{[%evp 15,100,-8,0,-19,-28,-102,-100,-87,-91,-132,-100,-146,-140,-136,-141,-135,-129,-134,-141,-136,-131,-122,-84,-99,-88,-81,-90,-91,-91,-91,-87,-89,-79,-88,-84,-65,-64,-243,-18,-33,-38,-33,-12,-44,-4,-26,0,0,0,0,0,0,182,0,0,0,169,0,0,0,8,8,20,13,377,0,0,0,0,0,0,0,0,0,0,0,0,0,0,0,0,0,0,0,0,0,0]} 1. d4 {[%emt 0:00:02]} d5 {[%emt 0:00:06]} 2. Bg5 {[%emt 0:00:23]} g6 {[%emt 0:00:45]} 3. e3 {[%emt 0:02:36]} Bg7 {[%emt 0:00:33]} 4. Bd3 {[%emt 0:03:42]} c5 {[%emt 0:02:16]} 5. c3 {[%emt 0:01:03]} Qb6 {[%emt 0:01:33]} 6. Qb3 {[%emt 0:02:08]} c4 {[%emt 0:09:07]} 7. Qxb6 {[%emt 0:00:19]} axb6 {[%emt 0:00:07]} 8. Bc2 {[%emt 0:00:14]} b5 {[%emt 0:03:58]} 9. e4 {[%emt 0:03:56]} b4 {[%emt 0:05:44]} 10. cxb4 {[%emt 0:13:00]} (10. a3 $11 {keeps the balance.}) 10... Nc6 $17 {[%emt 0:03:55]} (10... Bxd4 $6 11. Nc3 $11) 11. Nc3 {[%emt 0:04:18]} Nxb4 {[%emt 0:10:10]} (11... Nxd4 12. O-O-O Ne6 (12... Nxc2 13. Nxd5 f5 14. Nc7+ Kf7 15. Nxa8 $14) 13. Nxd5 $11) 12. Bb1 {[%emt 0:02:47]} Bxd4 {[%emt 0:08:36]} 13. Bd2 {[%emt 0:02:26]} (13. Nge2 $142 Bxc3+ 14. Nxc3) 13... Bg7 $17 {[%emt 0:06:07]} 14. exd5 {[%emt 0:04:56]} Nf6 {[%emt 0:09:31]} 15. d6 {[%emt 0:07:17]} O-O {[%emt 0:04:23]} 16. dxe7 {[%emt 0:04:41]} Re8 {[%emt 0:00:13]} 17. Nge2 {[%emt 0:00:17]} Rxe7 {[%emt 0:07:14]} 18. O-O {[%emt 0:01:11]} Nfd5 {[%emt 0:06:15]} 19. Nf4 {[%emt 0:03:41]} Nxf4 {[%emt 0:04:58]} 20. Bxf4 {[%emt 0:00:08]} Bxc3 {[%emt 0:01:03]} 21. bxc3 {[%emt 0:00:28]} Nd5 {[%emt 0:00:14]} 22. Bd2 {[%emt 0:12:27]} Ra3 {[%emt 0:03:21]} 23. Bc1 {[%emt 0:05:19]} Ra6 {[%emt 0:02:34]} (23... Rxc3 24. Bb2 $15) 24. Rd1 {[%emt 0:02:21]} Nxc3 {[%emt 0:02:41]} 25. Rd8+ {[%emt 0:00:11]} Kg7 {[%emt 0:00:08]} 26. Be3 $2 {[%emt 0:02:18] [#]} (26. Kf1 $15 Re2 27. Be3 (27. Rxc8 Rd6 $17) 27... Rxe3 28. Rxc8) 26... Nxb1 $2 {[%emt 0:02:47]} (26... Ne2+ 27. Kf1 Bg4 28. a4 $11) ({Better is} 26... Rxe3 $1 $19 27. fxe3 Be6) 27. Rxc8 $11 {[%emt 0:00:23]} Na3 {[%emt 0:00:27]} 28. Rc1 {[%emt 0:01:54]} (28. Bc5 Re2 $16) 28... b5 {[%emt 0:01:40]} 29. g4 {[%emt 0:01:01]} f6 {[%emt 0:01:29]} 30. h4 {[%emt 0:00:24]} h6 {[%emt 0:00:53]} 31. Kg2 {[%emt 0:02:59]} Rd7 {[%emt 0:00:52]} 32. Rb8 {[%emt 0:00:34]} Ra4 {[%emt 0:01:18]} 33. Bc5 {[%emt 0:02:06]} Rc7 $2 {[%emt 0:00:10]} (33... Kf7 $11) 34. Bd6 $2 {[%emt 0:02:02]} ({White has to play} 34. Bf8+ $18 Kf7 35. Bxh6) 34... Rd7 $11 {[%emt 0:00:25]} 35. Bc5 {[%emt 0:03:04]} Rc7 $2 {[%emt 0:00:34]} (35... h5 $11) 36. Bb6 $2 {[%emt 0:04:07]} (36. Bf8+ $18 Kh7 37. g5 fxg5 38. hxg5) 36... Rd7 {[%emt 0:00:41]} 37. Kg3 {[%emt 0:00:29]} b4 {[%emt 0:01:32]} 38. Bc5 {[%emt 0:00:34]} b3 {[%emt 0:00:26]} (38... Rd3+ $6 39. f3 Kf7 40. Bxb4 $16 (40. Rxb4 Rxb4 41. Bxb4 h5 $11)) 39. axb3 {[%emt 0:01:34]} Rd3+ $2 {[%emt 0:00:29][%mdl 8192] [#]} (39... cxb3 $11 {and Black stays safe.} 40. Ra1 (40. Rxb3 Nc4 $11) 40... b2 (40... Rd3+ $2 41. f3 $18) 41. Bf8+ (41. Rxa3 Rxa3+ 42. Bxa3 Rd3+ 43. Kf4 Rxa3 $11) (41. Rxb2 h5 $11) 41... Kf7 42. Rxa3 Rxa3+ 43. Bxa3 Rd3+ 44. f3 Rxa3) 40. Be3 $2 {[%emt 0:00:59]} (40. f3 $1 $18 {White threatens Rb7+ and mate.} Rxb3 41. Rc8) 40... Rxb3 $11 {[%emt 0:00:36]} 41. Rxb3 {[%emt 0:32:48]} cxb3 {[%emt 0:30:15]} 42. Rc7+ {[%emt 0:00:16]} Kg8 {[%emt 0:00:00]} 43. Rb7 {[%emt 0:00:00]} Nc4 {[%emt 0:00:00]} 44. Rxb3 {[%emt 0:00:00]} h5 {[%emt 0:00:00]} 45. Rb8+ {[%emt 0:00:00]} Kf7 {[%emt 0:00:00]} 46. Rb7+ {[%emt 0:00:00]} Ke6 {[%emt 0:00:00]} 47. gxh5 {[%emt 0:00:00]} gxh5 {[%emt 0:00:00]} 48. Bf4 {[%emt 0:00:00]} Ra3+ {[%emt 0:00:00]} 49. f3 {[%emt 0:00:00]} Ne3 {[%emt 0:00:00]} 50. Bxe3 {[%emt 0:00:00]} Rxe3 {[%emt 0:00:00]} 1/2-1/2

[Event "Festival Groningen-A 2024"]
[Site "Groningen"]
[Date "2024.12.22"]
[Round "2.5"]
[White "Maatman, Nick"]
[Black "Van Roon, Sjoerd"]
[Result "1/2-1/2"]
[ECO "D46"]
[WhiteElo "2375"]
[BlackElo "2285"]
[Annotator "TA"]
[PlyCount "68"]
[EventDate "2024.12.21"]
[EventType "swiss"]
[EventCountry "NED"]
[SourceTitle "playchess.com"]
[Source "ChessBase"]
[SourceQuality "1"]
[TimeControl "40/5400+30:1800+30"]

{[%evp 22,68,139,145,156,31,31,39,47,37,50,55,40,57,50,49,41,53,53,45,48,37,84,26,33,14,45,0,42,0,0,0,0,0,0,0,0,0,0,0,0,0,0,0,0,0,0,0,0]} 1. d4 {[%emt 0:01:46]} d5 {[%emt 0:00:07]} 2. c4 {[%emt 0:00:04]} c6 {[%emt 0:00:02]} 3. Nf3 {[%emt 0:00:03]} Nf6 {[%emt 0:00:03]} 4. e3 {[%emt 0:00:04]} e6 {[%emt 0:05:09]} 5. Nbd2 {[%emt 0:00:42]} Nbd7 {[%emt 0:00:41]} 6. Bd3 {[%emt 0:00:28]} Bd6 {[%emt 0:00:22]} 7. O-O {[%emt 0:00:06]} O-O {[%emt 0:00:05]} 8. e4 {[%emt 0:00:03]} dxe4 {[%emt 0:06:43]} 9. Nxe4 {[%emt 0:00:42]} Nxe4 {[%emt 0:07:30]} 10. Bxe4 {[%emt 0:02:07]} f5 {[%emt 0:00:07]} 11. Bc2 {[%emt 0:03:54]} e5 {[%emt 0:00:17] [#]} 12. Bg5 $1 {[%emt 0:37:23]} Qe8 {[%emt 0:26:47]} 13. Nxe5 {[%emt 0:00:55] White is more active.} (13. dxe5 $16 Bb8 14. Re1) 13... Nxe5 $14 {[%emt 0:12:25]} 14. Re1 {[%emt 0:01:11] Hoping for Bf4.} Be6 {[%emt 0:00:22] White is slightly better.} 15. dxe5 {[%emt 0:05:45]} Bb4 {[%emt 0:00:14]} 16. Bd2 {[%emt 0:10:35]} Rd8 {[%emt 0:02:02]} 17. Bxb4 {[%emt 0:00:24]} Rxd1 {[%emt 0:00:03]} 18. Raxd1 {[%emt 0:00:04]} Rf7 {[%emt 0:00:20] Black is weak on the dark squares} 19. Rd6 {[%emt 0:07:02]} Rd7 {[%emt 0:00:37]} 20. c5 {[%emt 0:05:06]} f4 {[%emt 0:08:55]} 21. Bc3 {[%emt 0:07:49]} f3 {[%emt 0:14:59] [#]} (21... Re7 $14 {is more appropriate.}) 22. gxf3 {[%emt 0:00:35]} (22. g3 $1 $16) 22... Qf7 $11 {[%emt 0:02:24][%cal Of7f3]} 23. Re3 {[%emt 0:02:19]} Re7 $1 {[%emt 0:00:43][%cal Of7f4]} 24. Bb3 {[%emt 0:03:18]} Kf8 {[%emt 0:02:02][%cal Oe7e8]} (24... Qf5 $5) 25. Bxe6 {[%emt 0:06:07]} Rxe6 {[%emt 0:00:04] The position is equal.} 26. Rxe6 {[%emt 0:00:03]} Qxe6 $14 {[%emt 0:00:04][%mdl 4096] Endgame. KQ-KRB} 27. Re4 {[%emt 0:00:08]} h5 {[%emt 0:02:11]} 28. a3 {[%emt 0:01:29]} Ke7 {[%emt 0:00:55]} 29. Rb4 {[%emt 0:01:08]} Qg6+ {[%emt 0:01:00]} 30. Kf1 {[%emt 0:00:05]} Qd3+ {[%emt 0:00:42]} 31. Kg2 {[%emt 0:00:14]} Qg6+ {[%emt 0:00:05]} 32. Kf1 {[%emt 0:00:42]} Qd3+ {[%emt 0:00:02]} 33. Kg2 {[%emt 0:02:01]} Qg6+ {[%emt 0:00:04]} 34. Kf1 {[%emt 0:00:03]} Qd3+ {[%emt 0:09:24] Weighted Error Value: White=0.16 (very precise) /Black=0.08 (flawless) .  Mistake:       	White=2     	Black=1      Inaccurate:     	White=2     	Black=1      OK:         	White=10    	Black=8      Best:        	White=1     	---        Strong:       	---       	Black=1} 1/2-1/2

[Event "Festival Groningen-A 2024"]
[Site "Groningen"]
[Date "2024.12.22"]
[Round "2.6"]
[White "Pham, Khoi"]
[Black "Smeets, Kobe"]
[Result "1/2-1/2"]
[ECO "D12"]
[WhiteElo "2285"]
[BlackElo "2349"]
[Annotator "TA"]
[PlyCount "120"]
[EventDate "2024.12.21"]
[EventType "swiss"]
[EventCountry "NED"]
[SourceTitle "playchess.com"]
[Source "ChessBase"]
[SourceQuality "1"]
[TimeControl "40/5400+30:1800+30"]

{[%evp 12,120,21,28,26,0,0,17,64,70,58,32,57,37,54,-24,-16,-71,-57,-43,-26,-13,-33,-21,-15,-18,-22,-106,-114,-181,-164,-169,-166,-329,-206,-213,-215,-216,-175,-175,-175,-172,-171,-163,-168,-159,-155,-187,-162,-189,-191,-220,-224,-229,-188,-188,-181,-190,-177,-197,-197,-197,-196,-504,-464,-493,-478,-418,-136,-124,-123,-109,-51,-51,-31,-21,-24,-24,-35,-51,-8,-46,-18,-31,-8,-8,-8,-8,-8,-8,-8,-8,-8,-8,-8,-8,-8,-8,-8,-8,-8,-8,-8,-8,-8,-8,-8,-8,-8,-8,-8]} 1. d4 {[%emt 0:00:03]} d5 {[%emt 0:00:09]} 2. c4 {[%emt 0:00:05]} c6 {[%emt 0:00:13]} 3. Nf3 {[%emt 0:00:06]} Nf6 {[%emt 0:00:10]} 4. e3 {[%emt 0:00:04]} Bf5 {[%emt 0:01:21]} 5. Nc3 {[%emt 0:00:06]} e6 {[%emt 0:00:07]} 6. Nh4 {[%emt 0:00:06]} Be4 {[%emt 0:00:05]} 7. f3 {[%emt 0:00:06]} Bg6 {[%emt 0:00:02]} 8. Bd2 {[%emt 0:00:08]} dxc4 {[%emt 0:00:21]} 9. Bxc4 {[%emt 0:00:28]} b5 {[%emt 0:00:10]} (9... a6 $11) 10. Nxg6 {[%emt 0:02:44]} hxg6 {[%emt 0:00:14]} 11. Bd3 {[%emt 0:00:16]} Nbd7 {[%emt 0:01:01]} 12. Qc2 {[%emt 0:03:04]} a6 {[%emt 0:04:25]} 13. O-O-O {[%emt 0:25:04]} (13. a4 $14) 13... c5 $11 {[%emt 0:01:02]} 14. g4 {[%emt 0:15:24]} (14. dxc5 $11 Bxc5 15. Kb1) 14... cxd4 $17 {[%emt 0:11:13]} 15. exd4 {[%emt 0:01:36][%cal Od4d5]} b4 {[%emt 0:02:06]} 16. Na4 $1 {[%emt 0:08:20]} Rc8 {[%emt 0:04:22]} 17. Bc4 $1 {[%emt 0:00:35]} Nd5 $36 {[%emt 0:12:49][%mdl 2048] Black has some pressure.} 18. Kb1 {[%emt 0:02:00]} N7b6 {[%emt 0:05:00]} (18... N5b6 {simplifies} 19. Nxb6 Nxb6 20. b3 Be7) 19. Nc5 {[%emt 0:03:49]} Bxc5 {[%emt 0:03:26]} 20. Bxa6 {[%emt 0:00:13]} (20. Bxd5 $17 Qxd5 (20... Bxd4 $2 21. Bc6+ Kf8 22. Bf4 $18) 21. dxc5 Rxc5 (21... Qxf3 22. Bxb4 Qxg4 23. Rhe1 $19) 22. Qe4) 20... Bd6 $19 {[%emt 0:03:38]} (20... Bxd4 21. Bxc8 Qxc8 22. Qxc8+ Nxc8 23. Bxb4 $17) 21. Bxc8 {[%emt 0:00:48]} Qxc8 {[%emt 0:00:26]} 22. Qd3 $2 {[%emt 0:01:49]} (22. Qxc8+ {was called for.} Nxc8 23. Rc1) 22... Qc4 {[%emt 0:02:05]} (22... Bxh2 23. Qe2 $16) (22... Rxh2 23. Rxh2 Bxh2 24. Rh1 $15) 23. Qxc4 {[%emt 0:02:46]} Nxc4 {[%emt 0:00:10] Excellent horsemanship.} 24. h4 {[%emt 0:00:12]} Kd7 {[%emt 0:01:04]} 25. Bc1 {[%emt 0:00:35]} Be7 {[%emt 0:03:46]} 26. h5 {[%emt 0:01:11]} gxh5 {[%emt 0:01:11]} 27. Rxh5 {[%emt 0:00:06]} Rxh5 {[%emt 0:00:37]} 28. gxh5 {[%emt 0:00:02]} Bf6 {[%emt 0:00:13]} 29. Rd3 {[%emt 0:07:50]} Kc6 {[%emt 0:08:01]} 30. a3 {[%emt 0:02:40]} Kb5 {[%emt 0:02:12]} 31. h6 {[%emt 0:05:16]} gxh6 $1 {[%emt 0:01:45]} 32. Bxh6 {[%emt 0:00:04]} Nd6 {[%emt 0:00:24]} 33. Bf8 {[%emt 0:02:23]} Kc4 {[%emt 0:11:31]} 34. Rd1 {[%emt 0:04:08]} Nb5 {[%emt 0:05:06]} 35. Bxb4 {[%emt 0:01:06]} Nxb4 {[%emt 0:00:37]} (35... Nxd4 36. Rc1+ Kb3 37. Rc8) 36. axb4 {[%emt 0:00:05]} Bxd4 {[%emt 0:01:41]} (36... Nxd4 37. Rc1+ Kxb4 38. Rc7 $17) 37. Rc1+ $2 {[%emt 0:04:12]} (37. Kc2 {is more resistant.}) 37... Kd3 {[%emt 0:03:27]} 38. Rc8 {[%emt 0:05:32]} f5 {[%emt 0:00:20]} 39. Rb8 {[%emt 0:01:20] [#]} Nc7 $2 {[%emt 0:00:07]} (39... Nd6 $1 $19 40. Rd8 Nb5) 40. b5 $17 {[%emt 0:00:39]} Nd5 {[%emt 0:00:50]} 41. Rd8 {[%emt 0:05:35] [#]} Nb6 {[%emt 0:22:39]} ({Better is} 41... Kc4 $1 $17 {[%cal Od4e5]} 42. Rd6 Kb3 (42... Kxb5 43. Rxe6 Kc4 44. Re8 $17) (42... e5 43. Kc1 $17)) 42. f4 $1 $15 {[%emt 0:01:04]} Ke4 {[%emt 0:01:59][%cal Ob6d5]} 43. Rd6 {[%emt 0:01:11]} e5 {[%emt 0:02:28]} 44. fxe5 {[%emt 0:00:32]} Kxe5 {[%emt 0:00:01]} 45. Rd8 {[%emt 0:00:14]} f4 {[%emt 0:04:40]} 46. Re8+ {[%emt 0:02:15]} Kd5 {[%emt 0:00:08]} 47. Kc2 $1 {[%emt 0:01:20]} Nc4 {[%emt 0:01:08][%cal Of4f3] Threatens to win with ...f3!.} 48. Rf8 $1 {[%emt 0:03:50]} Be3 {[%emt 0:01:01]} 49. b6 {[%emt 0:03:08]} Nxb6 {[%emt 0:01:31]} 50. Kd3 {[%emt 0:00:04]} Nd7 {[%emt 0:03:15]} 51. Rd8 {[%emt 0:00:11]} Kd6 {[%emt 0:01:36] Threatening ...Bb6.} 52. Ke4 {[%emt 0:03:04]} Ke7 {[%emt 0:00:13]} 53. Ra8 {[%emt 0:00:18]} Nc5+ {[%emt 0:00:35]} 54. Kf3 {[%emt 0:00:07]} Ne6 {[%emt 0:00:21]} 55. Ra5 {[%emt 0:01:52]} Kf6 {[%emt 0:01:05]} 56. b4 {[%emt 0:02:06]} Bd2 {[%emt 0:02:14]} 57. Kg4 {[%emt 0:01:37]} Nd4 {[%emt 0:03:24]} (57... Bxb4 $5 58. Rf5+ $8 Kg7 $11) 58. Ra8 {[%emt 0:02:12]} Ke5 {[%emt 0:01:46]} 59. Re8+ {[%emt 0:00:05]} Kd5 {[%emt 0:00:40]} 60. Rd8+ {[%emt 0:02:05]} Kc4 {[%emt 0:00:33]} 1/2-1/2